fUST/lending_fUST_20240208
["ID","MTS","AMOUNT","RATE_DAILY","PERIOD"]
[313428210,1707337839948,-500.0,0.00018002,2]
[313428211,1707337839957,-19135.13450941,0.00018002,2]
[313428212,1707337839967,-170.16474942,0.00018006,2]
[313428213,1707337839978,-1295.2641633,0.00018006,2]
[313428214,1707337839987,-263.77227934,0.00018006,2]
[313428215,1707337839997,-1946.99903392,0.00018006,2]
[313428216,1707337840006,-1155.74604154,0.00018006,2]
[313428217,1707337840015,-3771.97648686,0.00018006,2]
[313428218,1707337840025,-330.4947575,0.00018006,2]
[313428219,1707337840035,-4907.2630208,0.00018006,2]
[313428220,1707337840045,-155.0480649,0.00018006,2]
[313428221,1707337840054,-289.16724465,0.00018006,2]
[313428222,1707337840064,-188.7648569,0.00018006,2]
[313428223,1707337840075,-20929.45735728,0.00018006,2]
[313428225,1707337840084,-179.18619241,0.00018006,2]
[313428226,1707337840094,-590.02632581,0.00018006,2]
[313428227,1707337840104,-5223.83358614,0.00018007,2]
[313428228,1707337840114,-155.0480649,0.00018007,2]
[313428229,1707337840124,-352.18460138,0.00018007,2]
[313428230,1707337840135,-155.0480649,0.00018007,2]
[313428232,1707337840145,-310.04961151,0.00018015,2]
[313428234,1707337840156,-35077.27567799,0.00018094,2]
[313428235,1707337840167,-155.02790502,0.00018125,2]
[313428236,1707337840177,-155.02790502,0.00018125,2]
[313428237,1707337840187,-176.70010518,0.00018136,2]
[313428238,1707337840196,-168.625044,0.00019178,2]
[313428239,1707337840206,-200.0,0.00019818,2]
[313428240,1707337840215,-300.0,0.0002,2]
[313428241,1707337840228,-843.83159353,0.0002,2]
[313428242,1707337840237,-741.39467799,0.0002,2]
[313428243,1707337840246,-1201.66555398,0.0002,2]
[313428244,1707337840257,-1830.70871665,0.00021,2]
[313428245,1707337840267,-280.0,0.00021799,7]
[313428246,1707337840276,-166.666666,0.00021918,2]
[313428247,1707337840285,-311.31447271,0.00022,2]
[313428248,1707337840295,-3980.62518534,0.00022,2]
[313428249,1707337840304,-166.666666,0.00022431,2]
[313428250,1707337840313,-166.666666,0.00022944,2]
[313428251,1707337840322,-548.2342,0.00022999,2]
[313428252,1707337840331,-500.0,0.00022999,2]
[313428253,1707337840340,-501.22707092,0.00022999,2]
[313428254,1707337840350,-500.0,0.00022999,2]
[313428255,1707337840359,-277.31220588,0.00022999,2]
[313428256,1707337840368,-504.65038176,0.00022999,2]
[313428257,1707337840377,-241.25264485,0.00022999,2]
[313428258,1707337840387,-443.66816914,0.00022999,2]
[313428259,1707337840396,-449.10068533,0.00022999,2]
[313428260,1707337840406,-183.8749929,0.00022999,2]
[313428261,1707337840415,-500.0,0.00022999,2]
[313428262,1707337840423,-500.0,0.00022999,2]
[313428263,1707337840432,-567.34903181,0.00022999,2]
[313428264,1707337840441,-500.0,0.00022999,2]
[313428265,1707337840450,-9967.3761107,0.00023,2]
[313428266,1707337840460,-1263.05688852,0.00023,2]
[313428267,1707337840468,-155.02790502,0.00023,2]
[313428268,1707337840481,-3209.73838557,0.00023,2]
[313428269,1707337840491,-166.666666,0.00023456,2]
[313428270,1707337840500,-166.666666,0.00023969,2]
[313428271,1707337840509,-391.0,0.00023979,7]
[313428272,1707337840519,-4039.14093432,0.00024,2]
[313428273,1707337840527,-166.666666,0.00024482,2]
[313428274,1707337840536,-978.95259375,0.00024748,2]
[313428275,1707337840545,-4737.99496136,0.00025,2]
[313428276,1707337840554,-534.25000518,0.00025,2]
[313428277,1707337840564,-335.52992191,0.00025,2]
[313428278,1707337840574,-6299.4069347,0.00025,2]
[313428279,1707337840583,-2278.66541369,0.00025,2]
[313428280,1707337840592,-263.800626,0.00025577,2]
[313428281,1707337840601,-14912.40885814,0.0002577,2]
[313428282,1707337840610,-3902.54142286,0.00025776,2]
[313428283,1707337840619,-11736.94488242,0.00025793,2]
[313428284,1707337840628,-1147.11775046,0.00026197,2]
[313428285,1707337840637,-182.01403324,0.00026197,2]
[313428286,1707337840646,-200.0,0.00026377,15]
[313428287,1707337840656,-348.0,0.00026377,15]
[313428288,1707337840665,-1823.3869518,0.00026941,2]
[313428289,1707337840675,-310.03255436,0.00027,2]
[313428290,1707337840683,-1382.39428642,0.00027,2]
[313428291,1707337840693,-718.01783563,0.00027222,2]
[313428292,1707337840702,-457.97632314,0.00027223,2]
[313428293,1707337840711,-5598.40634948,0.00027267,2]
[313428294,1707337840720,-261.53272338,0.00027267,2]
[313428295,1707337840732,-1812.38877533,0.00027268,2]
[313428298,1707337840742,-207.14640822,0.00027268,2]
[313428300,1707337840751,-3276.83616544,0.00027268,2]
[313428302,1707337840760,-170.52332627,0.00027396,2]
[313428303,1707337840769,-511.89299392,0.000275,2]
[313428304,1707337840778,-155.02790502,0.00028,2]
[313428305,1707337840787,-1716.49476713,0.00028,2]
[313428306,1707337840796,-1439.88606349,0.00028,20]
[313428307,1707337840806,-473.94435722,0.00028,2]
[313428308,1707337840815,-51930.88733907,0.00028,2]
[313428309,1707337840824,-92831.89149022,0.000282,3]
[313428310,1707337840838,-30335.45911495,0.000282,3]
[313428311,1707337840847,-1110.20399625,0.00028382,2]
[313428312,1707337840857,-155.31785117,0.00028482,2]
[313428313,1707337840866,-262.12192266,0.00028763,2]
[313428314,1707337840875,-155.50315494,0.00028763,2]
[313428315,1707337840885,-155.12751329,0.00028764,2]
[313428316,1707337840894,-195.44394166,0.00028764,2]
[313428317,1707337840904,-194.824329,0.00028764,2]
[313428318,1707337840913,-246.3214001,0.00028764,2]
[313428319,1707337840922,-155.92188014,0.00028764,2]
[313428320,1707337840931,-200.91089181,0.00028765,2]
[313428321,1707337840940,-208.97377952,0.00028765,2]
[313428322,1707337840949,-829.35245838,0.00028765,2]
[313428323,1707337841031,-466.93740593,0.00028765,2]
[313428324,1707337841060,-521.82714187,0.00028765,2]
[313428325,1707337841069,-904.83318342,0.00028766,2]
[313428326,1707337841079,-155.99665382,0.00028766,2]
[313428327,1707337841088,-150.24401879,0.00028932,2]
[313428328,1707337841097,-56306.24439266,0.00029,2]
[313428329,1707337841106,-183.31759979,0.00029,10]
[313428330,1707337841115,-178.23601173,0.00029,2]
[313428331,1707337841124,-459.60686937,0.00029,3]
[313428332,1707337841133,-889.0,0.00029,4]
[313428333,1707337841142,-200.0,0.00029015,15]
[313428334,1707337841152,-200.0,0.00029015,15]
[313428335,1707337841162,-368.0,0.00029015,15]
[313428336,1707337841171,-155.31785117,0.0002908,2]
[313428337,1707337841181,-153.4634771,0.00029315,2]
[313428338,1707337841190,-207.7973928,0.00029315,2]
[313428339,1707337841199,-420.4280906,0.00029315,2]
[313428340,1707337841209,-306.0,0.00029315,2]
[313428341,1707337841218,-307.3855345,0.00029315,2]
[313428342,1707337841228,-199.9099361,0.00029315,2]
[313428343,1707337841237,-153.0,0.00029315,2]
[313428344,1707337841246,-199.9099361,0.00029315,2]
[313428345,1707337841255,-153.0,0.00029315,2]
[313428346,1707337841265,-153.0,0.00029315,2]
[313428347,1707337841274,-199.9099361,0.00029315,2]
[313428348,1707337841283,-199.9099361,0.00029315,2]
[313428349,1707337841292,-153.0,0.00029315,2]
[313428350,1707337841301,-199.9099361,0.00029315,2]
[313428351,1707337841311,-620.20903588,0.00029369,2]
[313428352,1707337841320,-1185.04629617,0.000295,30]
[313428353,1707337841330,-151.05891298,0.00029525,2]
[313428354,1707337841339,-153.0,0.00029589,2]
[313428355,1707337841348,-2000.0,0.000298,2]
[313428356,1707337841358,-2000.0,0.0002981,2]
[313428357,1707337841367,-2000.0,0.0002982,2]
[313428358,1707337841376,-2000.0,0.0002983,2]
[313428359,1707337841385,-2000.0,0.0002984,2]
[313428360,1707337841395,-2874.851273,0.0002985,2]
[313428361,1707337841404,-5000.0,0.00029929,5]
[313428362,1707337841413,-5000.0,0.00029933,5]
[313428364,1707337841423,-1110.20399622,0.00029936,2]
[313428366,1707337841432,-501.10672349,0.00029999,2]
[313428368,1707337841441,-293.23748406,0.00029999,2]
[313428370,1707337841450,-500.0,0.00029999,2]
[313428372,1707337841459,-500.0,0.00029999,2]
[313428374,1707337841468,-500.0,0.00029999,2]
[313428376,1707337841478,-500.0,0.00029999,2]
[313428378,1707337841487,-500.0,0.00029999,2]
[313428380,1707337841499,-500.0,0.00029999,2]
[313428382,1707337841508,-500.0,0.00029999,2]
[313428384,1707337841517,-191.57595902,0.00029999,2]
[313428386,1707337841526,-500.0,0.00029999,2]
[313428388,1707337841536,-500.0,0.00029999,2]
[313428390,1707337841545,-500.0,0.00029999,2]
[313428392,1707337841554,-500.0,0.00029999,2]
[313428394,1707337841563,-500.0,0.00029999,2]
[313428396,1707337841573,-500.0,0.00029999,2]
[313428398,1707337841583,-500.0,0.00029999,2]
[313428400,1707337841591,-500.0,0.00029999,2]
[313428402,1707337841600,-603.53587619,0.00029999,2]
[313428404,1707337841610,-500.0,0.00029999,2]
[313428406,1707337841619,-541.72238377,0.00029999,2]
[313428408,1707337841628,-500.0,0.00029999,2]
[313428410,1707337841637,-500.0,0.00029999,2]
[313428412,1707337841647,-500.0,0.00029999,2]
[313428414,1707337841656,-500.0,0.00029999,2]
[313428416,1707337841665,-500.0,0.00029999,2]
[313428417,1707337841674,-500.0,0.00029999,2]
[313428418,1707337841683,-500.0,0.00029999,2]
[313428420,1707337841693,-500.0,0.00029999,2]
[313428423,1707337841702,-500.0,0.00029999,2]
[313428424,1707337841712,-500.0,0.00029999,2]
[313428425,1707337841724,-500.0,0.00029999,2]
[313428426,1707337841733,-500.0,0.00029999,2]
[313428427,1707337841742,-500.0,0.00029999,2]
[313428428,1707337841751,-500.0,0.00029999,2]
[313428429,1707337841760,-267.92773327,0.00029999,2]
[313428430,1707337841769,-188557.48005115,0.0003,10]
[313428431,1707337841777,-1004.7640735,0.0003,10]
[313428432,1707337841786,-2328.22916535,0.0003,4]
[313428433,1707337841796,-701.78099729,0.0003,2]
[313428434,1707337841805,-500.0,0.0003,2]
[313428435,1707337841814,-500.0,0.0003,5]
[313428436,1707337841824,-948.01759774,0.0003,10]
[313428438,1707337841833,-5983.178311,0.0003,7]
[313428439,1707337841843,-155.02790502,0.0003,4]
[313428441,1707337841852,-419.76950329,0.0003,4]
[313428443,1707337841862,-503.98514352,0.0003,14]
[313428445,1707337841872,-5375.82479904,0.0003,4]
[313428447,1707337841881,-8596.22172122,0.0003,2]
[313428449,1707337841890,-1182.87652198,0.0003,4]
[313428450,1707337841899,-1238.34840962,0.0003,14]
[313428451,1707337841908,-2000.0,0.0003,2]
[313428452,1707337841917,-889.0,0.0003,7]
[313428453,1707337841926,-280.0,0.0003,2]
[313428455,1707337841936,-2000.0,0.0003001,2]
[313428457,1707337841946,-2000.0,0.0003002,2]
[313428458,1707337841955,-2000.0,0.0003003,2]
[313428459,1707337841964,-2000.0,0.0003004,2]
[313428461,1707337841974,-2000.0,0.0003005,2]
[313428463,1707337841983,-2000.0,0.0003006,2]
[313428464,1707337841992,-2000.0,0.0003007,2]
[313428465,1707337842002,-2000.0,0.0003008,2]
[313428467,1707337842010,-2000.0,0.0003009,2]
[313428468,1707337842020,-2000.0,0.000301,2]
[313428469,1707337842030,-2000.0,0.0003011,2]
[313428470,1707337842039,-2000.0,0.0003012,2]
[313428471,1707337842049,-198.33587778,0.0003013,2]
[313428472,1707337842059,-2000.0,0.0003013,2]
[313428473,1707337842070,-323.9970875,0.00030135,4]
[313428474,1707337842079,-199.9099361,0.00030137,2]
[313428475,1707337842089,-164.8662443,0.00030137,2]
[313428476,1707337842098,-2000.0,0.0003014,2]
[313428477,1707337842108,-2000.0,0.0003015,2]
[313428478,1707337842118,-2000.0,0.0003016,2]
[313428479,1707337842128,-3564.955345,0.0003017,2]
[313428480,1707337842138,-4747.5189435,0.000305,2]
[313428481,1707337842147,-1536.00932543,0.000305,2]
[313428482,1707337842157,-1536.00932543,0.000305,2]
[313428483,1707337842167,-1536.00932543,0.000305,2]
[313428484,1707337842177,-1536.00932543,0.000305,2]
[313428485,1707337842186,-1536.00932543,0.000305,2]
[313428486,1707337842195,-1536.00932543,0.000305,2]
[313428487,1707337842204,-1536.00932543,0.000305,2]
[313428488,1707337842214,-1536.00932543,0.000305,2]
[313428489,1707337842224,-1536.00932543,0.000305,2]
[313428490,1707337842233,-1536.00932543,0.000305,2]
[313428491,1707337842243,-620.01094429,0.00030837,2]
[313428492,1707337842252,-620.01045179,0.00030838,2]
[313428493,1707337842262,-1000.0,0.00031,31]
[313428494,1707337842271,-500.0,0.00031,2]
[313428495,1707337842280,-792.57044263,0.00031,15]
[313428496,1707337842290,-155.0,0.00031,2]
[313428497,1707337842300,-157.36464513,0.00031087,7]
[313428498,1707337842309,-155.31785117,0.00031367,7]
[313428499,1707337842320,-1110.20399622,0.00031489,2]
[313428500,1707337842329,-155.31785117,0.00031524,7]
[313428501,1707337842339,-155.3178512,0.00031531,7]
[313428502,1707337842349,-5811.79561607,0.000317,7]
[313428503,1707337842359,-361.264292,0.00031776,2]
[313428504,1707337842368,-226.188951,0.00031776,2]
[313428505,1707337842378,-164.826695,0.00031776,2]
[313428506,1707337842387,-180.632146,0.00031776,2]
[313428507,1707337842396,-188.490793,0.00031776,2]
[313428508,1707337842405,-188.490792,0.00031776,2]
[313428509,1707337842414,-180.632146,0.00031776,2]
[313428510,1707337842423,-285.327481,0.00031776,2]
[313428511,1707337842431,-2660.52335567,0.00031839,30]
[313428512,1707337842441,-1497.74299672,0.00031897,16]
[313428513,1707337842450,-22868.77399123,0.000319,3]
[313428514,1707337842459,-200.0,0.00031916,15]
[313428515,1707337842468,-200.0,0.00031916,15]
[313428516,1707337842479,-200.0,0.00031916,15]
[313428517,1707337842489,-200.0,0.00031916,15]
[313428518,1707337842501,-275.0,0.00031916,15]
[313428519,1707337842511,-1823.3869518,0.00031941,2]
[313428520,1707337842521,-11589.88179603,0.00031998,3]
[313428521,1707337842530,-278.10686891,0.00031999,2]
[313428522,1707337842540,-24242.80258445,0.00032,15]
[313428523,1707337842553,-1554.47175405,0.00032,15]
[313428524,1707337842565,-2376.35776166,0.00032,15]
[313428525,1707337842747,-155.0480649,0.00017999,2]
[313428526,1707337842757,-436.0136936,0.00018006,2]
[313428527,1707337842766,-165.68893459,0.00018006,2]
[313428528,1707337842775,-2328.28812389,0.00032,15]
[313428529,1707337842787,-20460.93682902,0.00032,15]
[313428530,1707337842805,-1000.0,0.00032,15]
[313428633,1707337843804,-294.51312657,0.00017999,2]
[313428635,1707337843813,-8757.76516124,0.00027397,3]
[313428909,1707337846722,-2822.01569009,0.00018005,2]
[313428911,1707337846732,-7306.00483876,0.00027397,3]
[313428913,1707337846740,-199.9099361,0.00029315,2]
[313428915,1707337846749,-1859.71951506,0.00029998,2]
[313428917,1707337846759,-220.0,0.00032,2]
[313428919,1707337846768,-5202.98272684,0.00032,15]
[313428921,1707337846782,-2174.71853675,0.00032,15]
[313429592,1707338688041,155.05271792,0.00017753,3]
[313429593,1707338708031,155.05271792,0.00016875,3]
[313429594,1707338720753,980.6631799,0.0001775,2]
[313429595,1707338724137,155.05271792,0.0001775,2]
[313429596,1707338726031,155.05271792,0.00016875,3]
[313429597,1707338730182,330.4947575,0.0001775,2]
[313429598,1707338730266,20955.05859825,0.0001775,2]
[313429599,1707338730677,1859.71951506,0.0001775,2]
[313429600,1707338732983,719.01123137,0.0001775,2]
[313429601,1707338734764,977.2420076,0.00016875,2]
[313429603,1707338750032,155.04961588,0.00015974,2]
[313429605,1707338766044,155.04961588,0.00015973,2]
[313429606,1707338780041,155.04961588,0.00015973,2]
[313429607,1707338796034,155.04961588,0.00015973,2]
[313429608,1707338816077,155.04961588,0.0001597,2]
[313429609,1707338836051,155.04031048,0.00015969,2]
[313429610,1707338856061,155.0310062,0.00015969,2]
[313429612,1707338874047,155.0310062,0.00015964,2]
[313429613,1707338892060,155.0310062,0.00015962,2]
[313429614,1707338903800,706.151053,0.0001674,2]
[313429615,1707338906807,951.67903154,0.00015962,2]
[313429616,1707338907509,2717.98041473,0.00017736,5]
[313429617,1707338908061,155.0294556,0.00015962,2]
[313429618,1707338928059,155.0294556,0.0001596,2]
[313429619,1707338950087,155.0294556,0.00015958,2]
[313429620,1707338968057,155.0294556,0.00015958,2]
[313429621,1707338990068,155.0294556,0.00015866,2]
[313429622,1707339009755,155.03720893,0.00015866,2]
[313429623,1707339024060,155.03875969,0.00015866,2]
[313429719,1707339031848,-1745.51182689,0.00017624,2]
[313429721,1707339031859,-330.4947575,0.00017624,2]
[313429723,1707339031868,-2822.01569009,0.00017625,2]
[313429726,1707339031877,-243.81886523,0.00017625,2]
[313429729,1707339031886,-1309.08476004,0.00017625,2]
[313429732,1707339031897,-10483.40197122,0.00017625,2]
[313430474,1707339037907,-681.95091466,0.00017623,2]
[313430476,1707339037916,-3505.33770953,0.00017625,2]
[313430482,1707339037967,-57457.72521635,0.00017625,2]
[313430485,1707339037979,-4429.5703663,0.00017625,2]
[313430595,1707339040999,-1596.79825062,0.00017625,2]
[313430596,1707339041011,-1002.04205956,0.00017625,2]
[313430648,1707339042917,-4138.93245653,0.00017625,2]
[313430650,1707339042927,-179.18619241,0.00017626,2]
[313430652,1707339042935,-155.03720893,0.00017626,2]
[313430654,1707339042945,-214.05113646,0.00017626,2]
[313430655,1707339042955,-1946.99903392,0.00017626,2]
[313430656,1707339042964,-3234.38081787,0.00017626,2]
[313430657,1707339042975,-2056.9838968,0.00017626,2]
[313430694,1707339044074,155.03875969,0.00015863,2]
[313430705,1707339045953,-486.83,0.00017626,2]
[313430723,1707339064130,155.03875969,0.00015863,2]
[313430724,1707339082060,155.04031048,0.00015861,2]
[313430725,1707339100196,155.04031048,0.00015861,2]
[313430726,1707339117469,16188.3599061,0.00016623,2]
[313430727,1707339118071,155.04031048,0.00015857,2]
[313430728,1707339142067,155.04031048,0.00015857,2]
[313430729,1707339164116,155.04031048,0.00015854,2]
[313430730,1707339184081,155.04031048,0.00015852,2]
[313430731,1707339194636,2455.6439644,0.00016615,2]
[313430732,1707339194664,190.6626231,0.00016615,2]
[313430733,1707339204110,155.04031048,0.00015852,2]
[313430734,1707339220080,155.04031048,0.00015852,2]
[313430735,1707339240108,155.04031048,0.00015845,2]
[313430738,1707339260165,155.04031048,0.00015845,2]
[313430739,1707339280117,155.04031048,0.00015842,2]
[313430740,1707339296122,155.04031048,0.00015842,2]
[313430741,1707339314102,155.04031048,0.00015839,2]
[313430742,1707339334109,155.04031048,0.00015839,2]
[313430743,1707339358121,155.04031048,0.00015839,2]
[313430744,1707339378123,155.0341075,0.00015836,2]
[313430745,1707339387113,505.316612,0.000165,2]
[313430746,1707339396124,155.0341075,0.00015746,2]
[313430747,1707339412126,155.0341075,0.00015744,2]
[313430748,1707339428126,155.0341075,0.00015744,2]
[313430749,1707339444816,736.9369673,0.00016493,2]
[313430750,1707339446131,155.0341075,0.00015739,2]
[313430751,1707339466133,155.0341075,0.00015744,2]
[313430752,1707339482140,155.0341075,0.00015737,2]
[313430753,1707339502141,155.0341075,0.00015737,2]
[313430754,1707339522139,155.0341075,0.00015737,2]
[313430755,1707339544144,155.0341075,0.00015731,2]
[313430756,1707339560151,155.0341075,0.00015729,2]
[313430757,1707339578152,155.0341075,0.00015728,2]
[313430758,1707339594149,155.0341075,0.00015839,2]
[313430759,1707339614144,155.0341075,0.00015727,2]
[313430760,1707339632146,155.0341075,0.00015727,2]
[313430761,1707339650157,155.0341075,0.00015722,2]
[313430762,1707339663864,170.6691624,0.00017468,7]
[313430763,1707339668146,155.0341075,0.00015721,2]
[313430764,1707339686149,155.0341075,0.00015719,2]
[313430765,1707339706206,155.0341075,0.00015718,2]
[313430766,1707339728163,155.0341075,0.00015716,2]
[313430767,1707339746222,155.0341075,0.00015714,2]
[313430768,1707339764155,155.0418613,0.00015713,2]
[313430769,1707339778226,155.0418613,0.00015627,2]
[313430770,1707339794174,155.0418613,0.00015627,2]
[313430771,1707339812178,155.0418613,0.00015625,2]
[313430772,1707339828170,155.0418613,0.00015625,2]
[313430787,1707339846322,155.0418613,0.00015622,2]
[313430789,1707339853199,252.658306,0.00016361,2]
[313430790,1707339862171,155.0418613,0.00015622,2]
[313430792,1707339882174,155.04341216,0.00015619,2]
[313430793,1707339904173,155.04341216,0.00015618,2]
[313430794,1707339920177,155.04341216,0.00015618,2]
[313430795,1707339938176,155.04341216,0.00015618,2]
[313430796,1707339954168,155.04031048,0.00015612,2]
[313430797,1707339970180,155.04031048,0.00015612,2]
[313430798,1707339996181,155.04031048,0.00015612,2]
[313430799,1707340016180,155.04031048,0.00015607,2]
[313430806,1707340028787,8156.714542,0.00016349,2]
[313430808,1707340032267,155.04031048,0.00015607,2]
[313430809,1707340050189,155.04031048,0.00015602,2]
[313430818,1707340068204,155.04031048,0.00015602,2]
[313430819,1707340086218,155.04031048,0.00015601,2]
[313430820,1707340104204,155.04031048,0.00015601,2]
[313430824,1707340118209,155.04031048,0.00015597,2]
[313430825,1707340136208,155.04031048,0.00015597,2]
[313430826,1707340154214,155.04031048,0.00015593,2]
[313430827,1707340176219,155.04031048,0.00015597,2]
[313430828,1707340200249,155.04031048,0.00015592,2]
[313430829,1707340207806,246.00736193,0.00017231,2]
[313430830,1707340224222,155.04031048,0.00015587,2]
[313431039,1707340234523,-1513.15613917,0.00017317,2]
[313431041,1707340234533,-155.04031048,0.00017317,2]
[313431043,1707340234543,-1745.51182689,0.00017317,2]
[313431045,1707340234554,-3755.69529023,0.00017317,2]
[313431047,1707340234563,-590.02632581,0.00017318,2]
[313431049,1707340234573,-1859.71951506,0.00017318,2]
[313431051,1707340234583,-155.04031048,0.00017319,2]
[313431053,1707340234594,-352.18460138,0.00017319,2]
[313431055,1707340234603,-2822.01569009,0.00017319,2]
[313431058,1707340234613,-535.43841798,0.0001732,2]
[313431061,1707340234622,-37061.66416696,0.0001732,2]
[313431064,1707340234632,-155.04031048,0.00017321,2]
[313431066,1707340234642,-4179.85662615,0.00017321,2]
[313431068,1707340234652,-179.18619241,0.00017321,2]
[313431070,1707340234661,-18955.04769253,0.00017321,2]
[313431073,1707340234672,-5223.83358614,0.00017322,2]
[313431075,1707340234681,-19918.13279308,0.00017322,2]
[313431077,1707340234691,-20929.45735728,0.00017323,2]
[313431078,1707340234700,-151.98069964,0.00017501,2]
[313431081,1707340234710,-9076.5993417,0.00017601,2]
[313431083,1707340234722,-915.83813876,0.00017601,2]
[313431085,1707340234734,-4583.920033,0.00017601,2]
[313431088,1707340234750,-16766.25705221,0.00017601,2]
[313431284,1707340238043,-340.80038775,0.00017601,2]
[313431285,1707340238101,-1339.12430165,0.00017601,2]
[313431286,1707340238161,-10295.30589678,0.00017601,2]
[313431287,1707340238172,-23276.2601625,0.00017601,2]
[313431288,1707340238181,-326.98738141,0.00017619,2]
[313431289,1707340238190,-309.72125088,0.00017619,2]
[313431290,1707340238199,-155.14678343,0.00017619,2]
[313431291,1707340238208,-155.17453603,0.00017619,2]
[313431292,1707340238217,-155.12462204,0.00017619,2]
[313431293,1707340238226,-7975.5382397,0.00017619,2]
[313431294,1707340238235,-2107.98461723,0.00017619,2]
[313431295,1707340238247,-235.56020887,0.00017619,2]
[313431296,1707340238256,-1495.8188724,0.00017619,2]
[313431297,1707340238265,-1294.9059591,0.00017619,2]
[313431298,1707340238274,-1068.5140919,0.00017623,2]
[313431299,1707340238284,-240.218605,0.00017625,2]
[313431300,1707340238293,-328.89453219,0.00017625,2]
[313431301,1707340238302,-626.33655621,0.00017625,2]
[313431302,1707340238312,-820.4174629,0.00017625,2]
[313431303,1707340238322,-214.2397072,0.00017625,2]
[313431304,1707340238331,-1876.66789805,0.00017629,2]
[313431305,1707340238341,-400.05518616,0.00017733,2]
[313431306,1707340238351,-167.15951964,0.00017736,2]
[313431307,1707340238360,-171.19115676,0.00017736,2]
[313431308,1707340238369,-289.16724465,0.00017748,2]
[313431309,1707340238378,-3276.83616544,0.00017749,2]
[313431310,1707340238388,-5852.91245033,0.00018,2]
[313431311,1707340238397,-176.70010518,0.00018751,2]
[313431312,1707340238407,-1690.80901576,0.000189,2]
[313431313,1707340238416,-200.0,0.00019065,2]
[313431314,1707340238425,-168.872111,0.00019178,2]
[313431315,1707340238435,-167.95598,0.00019178,2]
[313431316,1707340238446,-1411.76778685,0.00019893,2]
[313431317,1707340238455,-523.25075564,0.0002,2]
[313431318,1707340238463,-1201.66555398,0.0002,2]
[313431319,1707340238473,-508.80933296,0.00020822,2]
[313431320,1707340238483,-500.0,0.00020822,2]
[313431321,1707340238491,-500.0,0.00020822,2]
[313431322,1707340238503,-500.0,0.00020822,2]
[313431323,1707340238513,-443.66816914,0.00020822,2]
[313431324,1707340238522,-500.0,0.00020822,2]
[313431325,1707340238532,-500.0,0.00020822,2]
[313431326,1707340238542,-500.0,0.00020822,2]
[313431327,1707340238552,-583.24605022,0.00020822,2]
[313431328,1707340238561,-500.0,0.00020822,2]
[313431329,1707340238570,-500.0,0.00020822,2]
[313431330,1707340238580,-500.0,0.00020822,2]
[313431331,1707340238589,-500.0,0.00020822,2]
[313431332,1707340238598,-500.0,0.00020822,2]
[313431333,1707340238607,-500.0,0.00020822,2]
[313431334,1707340238616,-500.0,0.00020822,2]
[313431335,1707340238625,-500.0,0.00020822,2]
[313431336,1707340238634,-500.0,0.00020822,2]
[313431337,1707340238643,-233.95443739,0.00020822,2]
[313431338,1707340238653,-500.0,0.00020822,2]
[313431339,1707340238662,-500.0,0.00020822,2]
[313431340,1707340238672,-500.0,0.00020822,2]
[313431341,1707340238681,-372.5,0.00020822,2]
[313431342,1707340238690,-500.0,0.00020822,2]
[313431343,1707340238700,-500.0,0.00020822,2]
[313431344,1707340238709,-500.0,0.00020822,2]
[313431345,1707340238718,-500.0,0.00020822,2]
[313431346,1707340238728,-500.0,0.00020822,2]
[313431347,1707340238738,-500.0,0.00020822,2]
[313431348,1707340238749,-500.0,0.00020822,2]
[313431349,1707340238758,-505.40314075,0.00020822,2]
[313431350,1707340238767,-500.0,0.00020822,2]
[313431351,1707340238776,-500.0,0.00020822,2]
[313431352,1707340238785,-500.0,0.00020822,2]
[313431353,1707340238794,-203.64380204,0.00020822,2]
[313431354,1707340238803,-500.0,0.00020822,2]
[313431355,1707340238813,-258.91534472,0.00020822,2]
[313431356,1707340238822,-500.0,0.00020822,2]